Cogmind - Beta 12 *** ADVENTURER MODE // 2023.03.07 @ 17:21:01 Player: 619 Result: Destroyed by Y-45 Defender with Beam Rifle Performance ------------- Evolutions (2) 1000 Regions Visited (4) 800 Robots Destroyed (30) 150 Value Destroyed (903) 903 Prototype IDs (2) 40 Alien Tech Used (0) 0 Bonus (136) 136 TOTAL SCORE: 3029 Bonus ------- Follower Combat Kills 136 Cogmind --------- Core Integrity 0/550 Matter 289/300 Energy 300/300 System Corruption 0% Temperature Cool (27) Movement Core (700) Ox13 Location -8/Materials Parts ------- > --- POWER (2) -------- (None) > --- PROPULSION (2) --- (None) > --- UTILITY (5) ------ High-capacity Storage Unit Compact Battery Visual Processing Unit Advanced Visual Processing Unit > --- WEAPON (2) ------- (None) > --- INVENTORY (20) --- Heat Sink Small Storage Unit Huge Storage Unit Small Matter Pod (50) Improved Signal Interpreter Field Recycling Unit (0) Peak State ------------ > --- POWER ------------ Improved Ion Engine Light Nuclear Core > --- PROPULSION ------- Aluminum Leg Aluminum Leg > --- UTILITY ---------- High-capacity Storage Unit Structural Scanner Visual Processing Unit Power Shielding Shield Generator > --- WEAPON ----------- Light Assault Rifle Heavy Assault Rifle > --- INVENTORY -------- Heat Sink Small Storage Unit Huge Storage Unit Compact Battery Small Matter Pod High-powered Tractor Beam Field Recycling Unit [Rating: 18] Favorites ----------- Power Ion Engine Engine Ion Engine Power Core Light Nuclear Core Propulsion Aluminum Leg Treads Light Treads Leg Aluminum Leg Wheel Armored Wheel Utility High-capacity Storage Unit Device Structural Scanner Storage High-capacity Storage Unit Processor Visual Processing Unit Hackware Hacking Suite Protection Power Shielding Weapon Light Assault Rifle Energy Gun Small Laser Ballistic Gun Light Assault Rifle Impact Weapon Maul Special Melee Weapon Datajack Build | -11 -10 -9 -9 -8 ------- Run | Jun Mat Mat Min Mat Slots Evolved 4 | . . 2 . 2 Power 1 | . . 1 . . Propulsion . | . . . . . Utility 3 | . . 1 . 2 Weapon . | . . . . . Parts Attached 49 | 7 1 18 2 21 Power 7 | 1 . 3 . 3 Engine 4 | 1 . 2 . 1 Core 3 | . . 1 . 2 Reactor . | . . . . . Propulsion 14 | 3 . 7 2 2 Treads 3 | 2 . 1 . . Leg 9 | 1 . 4 2 2 Wheel 2 | . . 2 . . Hover . | . . . . . Flight . | . . . . . Utility 18 | 1 1 4 . 12 Device 8 | . . 2 . 6 Storage 3 | 1 1 . . 1 Processor 2 | . . 1 . 1 Hackware 1 | . . . . 1 Protection 4 | . . 1 . 3 Artifact . | . . . . . Weapon 10 | 2 . 4 . 4 Energy Gun 1 | . . 1 . . Energy Cannon . | . . . . . Ballistic Gun 6 | 2 . 1 . 3 Ballistic Cannon . | . . . . . Launcher . | . . . . . Special Weapon . | . . . . . Impact Weapon 2 | . . 2 . . Slashing Weapon . | . . . . . Piercing Weapon . | . . . . . Special Melee Weapon 1 | . . . . 1 Unidentified Prototypes . | . . . . . Parts Lost 26 | . . 6 . 20 Power 7 | . . 2 . 5 Propulsion 7 | . . 3 . 4 Utility 8 | . . 1 . 7 Weapon 4 | . . . . 4 Highest Loss Streak 8 | . . 2 . 8 To Critical Strikes . | . . . . . Average Slot Usage (%) 92 | . 98 93 100 86 Engine 11 | . 14 16 11 4 Core 4 | . . . 11 9 Treads 7 | . 28 . . . Leg 6 | . . 3 22 13 Wheel 5 | . . 17 . . Device 8 | . . 16 . 7 Storage 14 | . 26 11 11 9 Processor 4 | . . . 11 11 Protection 7 | . . 4 11 14 Energy Gun 1 | . . 3 . . Ballistic Gun 13 | . 28 8 . 7 Impact Weapon 5 | . . 9 22 3 Special Melee Weapon 1 | . . . . 3 Naked Turns . | . . . . . Heaviest Build 61 | 13 53 56 56 61 Greatest Support 40 | 40 40 40 20 20 Greatest Overweight (x) 18 | 2 1 18 2 6 Average Overweight (x) 1 | . . 1 2 2 Largest Inventory Capacity 20 | 8 20 20 20 20 Average Capacity 19 | 6 19 20 20 20 Most Carried 20 | 7 16 20 15 17 Average Carried 13 | 5 12 18 14 10 Final Capacity 20 | 8 20 20 20 20 Final Carried 16 | 6 16 16 14 6 Class Distribution -------------------- 90% | Mutant 9% | Scavenger-Mutant Dominant Class ---------------- Mutant | -10/Materials Mutant | -9/Materials Mutant | -9/Mines Mutant | -8/Materials Resources | -11 -10 -9 -9 -8 ----------- Run | Jun Mat Mat Min Mat Matter Collected 863 | 201 159 272 . 231 Remotely 20 | . . . . 20 Salvage Created 995 | . 276 503 . 216 Parts 64 | . 23 31 . 10 Haulers Intercepted . | . . . . . Recyclers Shooed 2 | . . 1 . 1 Parts Field Recycled . | . . . . . Retrieved Matter . | . . . . . Parts Self-Destructed . | . . . . . Prevented . | . . . . . Kills | -11 -10 -9 -9 -8 ------- Run | Jun Mat Mat Min Mat Combat Hostiles Destroyed 28 | . 7 14 . 7 Melee 6 | . . 5 . 1 Guns 17 | . 7 5 . 5 Classes Destroyed 6 | . 3 2 . 1 Watcher 2 | . 1 . . 1 Swarmer 9 | . 2 3 . 4 Grunt 10 | . 5 5 . . Brawler 1 | . . 1 . . Sentry 7 | . . 5 . 2 Hunter 1 | . . . . 1 Best Kill Streak 4 | . 3 4 . 3 Combat Bots Only 4 | . 3 4 . 3 Max Kills in Single Turn 1 | . 1 1 . 1 Gunslinging . | . . . . . Exploded . | . . . . . Melee 1 | . . 1 . 1 Uniques/NPCs Destroyed . | . . . . . Combat | -11 -10 -9 -9 -8 -------- Run | Jun Mat Mat Min Mat Damage Taken 3081 | . 183 1052 . 1846 Core 813 | . 38 222 . 553 Absorbed by Shields 88 | . . . . 88 Redirected to Shielding 102 | . . 49 . 53 Core Remaining (%) 76 | 100 84 . 44 . Volleys Fired 115 | . 23 46 . 46 Largest 2 | . 2 2 . 2 Hottest 60 | . 40 60 . 43 Shots Fired 161 | . 46 53 . 62 Gun 161 | . 46 53 . 62 Cannon . | . . . . . Launcher . | . . . . . Special . | . . . . . Kinetic 141 | . 46 33 . 62 Thermal 20 | . . 20 . . Explosive . | . . . . . Electromagnetic . | . . . . . Robot Hit Streak 17 | . 8 17 . 17 Robot Miss Streak 3 | . 3 2 . 2 Penetration Max . | . . . . . Secondary Targets 1 | . 1 . . . Max Gunslinging Chain 1 | . 1 . . . Shots Hit Robots 167 | . 31 71 . 65 Core Hits 42 | . 14 16 . 12 Critical Kills 3 | . 1 1 . 1 Critical Parts Destroyed 7 | . . 5 . 2 Critical Strikes 11 | . 1 7 . 3 Destroy 4 | . 1 1 . 2 Smash 7 | . . 6 . 1 Melee Attacks 47 | . . 31 . 16 Impact 42 | . . 31 . 11 Slashing . | . . . . . Piercing . | . . . . . Sneak Attacks 4 | . . . . 4 Combat Hostiles . | . . . . . Follow-up Attacks 1 | . . 1 . . Damage Inflicted 2330 | . 351 1230 . 749 Guns 1202 | . 351 403 . 448 Cannons . | . . . . . Explosions . | . . . . . Melee 1128 | . . 827 . 301 Ramming . | . . . . . Kinetic 1048 | . 351 249 . 448 Thermal 154 | . . 154 . . Explosive . | . . . . . Electromagnetic . | . . . . . Impact 1128 | . . 827 . 301 Slashing . | . . . . . Piercing . | . . . . . Highest Corruption 1 | . . 1 1 . Average Corruption 1 | . . 1 1 . Corruption Purged . | . . . . . Corruption Blocked . | . . . . . Effects 8 | . . 7 1 . Message Errors 2 | . . 2 . . Matter Fused 1 | . . 1 . . Energy Discharges 1 | . . 1 . . Parts Rejected 1 | . . 1 . . Data Loss (minor) 1 | . . . 1 . Data Loss (major) 1 | . . 1 . . Misfires 1 | . . 1 . . Overload Shots . | . . . . . Overflow Damage 228 | . . 195 . 33 Projectiles . | . . . . . Explosions . | . . . . . Melee 228 | . . 195 . 33 Knockbacks 4 | . . 4 . . Impact 4 | . . 4 . . Kinetic . | . . . . . Secondary . | . . . . . Self-Inflicted Damage . | . . . . . Shots . | . . . . . Rammed . | . . . . . Targets Rammed . | . . . . . Kicked . | . . . . . Crushed . | . . . . . Highest Temperature 52 | . 9 52 . 24 Average Temperature 10 | . 6 14 . 7 Received Heat Transfer 1158 | . 117 450 . 591 Siege Activations . | . . . . . Robots Corrupted . | . . . . . Combat Hostiles . | . . . . . Parts Fried 5 | . . 2 . 3 Impact Corruptions 12 | . . 11 . 1 Robots Melted . | . . . . . Combat Hostiles . | . . . . . Parts Melted . | . . . . . Heat Transferred 350 | . . 350 . . Parts Sabotaged . | . . . . . Parts Stolen . | . . . . . Parts Stripped . | . . . . . Power Chain Reactions . | . . . . . Missiles Intercepted . | . . . . . Alert | -11 -10 -9 -9 -8 ------- Run | Jun Mat Mat Min Mat Peak Influence 292 | . 150 292 89 111 Initial 89 | . . 27 89 28 Average 97 | . 85 153 89 69 Maximum Alert Level 1 | . . 1 . . Low Security (%) 87 | 100 100 61 100 100 Level 1 12 | . . 38 . . Level 2 . | . . . . . Level 3 . | . . . . . Level 4 . | . . . . . Level 5 . | . . . . . High Security . | . . . . . Max Security . | . . . . . Squads Dispatched 6 | . 1 3 . 2 Investigation 1 | . 1 . . . Extermination . | . . . . . Reinforcement 5 | . . 3 . 2 Assault . | . . . . . Garrison . | . . . . . Intercept . | . . . . . Searches Triggered . | . . . . . Construction Impeded . | . . . . . Haulers Reinforced . | . . . . . Active Scanning Responses . | . . . . . Cargo Convoy Interrupts . | . . . . . Stealth | -11 -10 -9 -9 -8 --------- Run | Jun Mat Mat Min Mat Distress Signals 7 | . 1 4 . 2 Communications Jammed . | . . . . . Distress Signals . | . . . . . Times Spotted 60 | . 12 27 . 21 Peak Tracking Total 7 | . 3 5 . 7 Tactical Retreats 2 | . . 2 . . Traps | -11 -10 -9 -9 -8 ------- Run | Jun Mat Mat Min Mat Traps Triggered . | . . . . . Indirectly . | . . . . . Trap Hack Attempts . | . . . . . Triggered . | . . . . . Disarmed . | . . . . . Reprogrammed . | . . . . . Reused . | . . . . . Traps Extracted . | . . . . . Installed . | . . . . . Triggered . | . . . . . Machines | -11 -10 -9 -9 -8 ---------- Run | Jun Mat Mat Min Mat Machines Disabled . | . . . . . Max in Single Turn . | . . . . . Machines Repaired . | . . . . . Machines Sabotaged . | . . . . . Overloaded Fab Kills . | . . . . . Hacking | -11 -10 -9 -9 -8 --------- Run | Jun Mat Mat Min Mat Machines Accessed 10 | . 3 5 . 2 Terminals 7 | . 2 3 . 2 Fabricators . | . . . . . Repair Stations . | . . . . . Recycling Units 2 | . 1 1 . . Scanalyzers 1 | . . 1 . . Garrison Access . | . . . . . Total Hacks 29 | . 8 16 . 5 Successful 28 | . 7 16 . 5 Failed 1 | . 1 . . . Catastrophic . | . . . . . Database Lockouts . | . . . . . Manual . | . . . . . Terminals 19 | . 7 7 . 5 Fabricators . | . . . . . Repair Stations . | . . . . . Recycling Units 2 | . 1 1 . . Scanalyzers 8 | . . 8 . . Garrison Access . | . . . . . Terminal Hacks 18 | . 6 7 . 5 Record 11 | . 3 6 . 2 Prototype ID Bank 1 | . . . . 1 Emergency Access Points 1 | . 1 . . . Alert Level 2 | . 1 1 . . Dispatch Records 2 | . 1 . . 1 Recall Investigation 1 | . . . . 1 Fabricator Hacks . | . . . . . Repair Station Hacks . | . . . . . Recycling Unit Hacks 2 | . 1 1 . . Report Inventory 2 | . 1 1 . . Scanalyzer 8 | . . 8 . . Insert Component 4 | . . 4 . . Analyze 4 | . . 4 . . Garrison Access Hacks . | . . . . . Unauthorized Hacks . | . . . . . Terminals . | . . . . . Fabricators . | . . . . . Repair Stations . | . . . . . Recycling Units . | . . . . . Scanalyzers . | . . . . . Garrison Access . | . . . . . Data Cores Recovered . | . . . . . Used . | . . . . . Hacking Detections 7 | . 2 3 . 2 Full Trace Events 3 | . 2 1 . . Feedback Events 1 | . . 1 . . Corruption 1 | . . 1 . . Feedback Blocked . | . . . . . Robot Schematics Acquired . | . . . . . Robots Built . | . . . . . Authchips . | . . . . . Time . | . . . . . Total Robot Build Rating . | . . . . . Part Schematics Acquired 4 | . . 4 . . Parts Built . | . . . . . Authchips . | . . . . . Time . | . . . . . Total Part Build Rating . | . . . . . Parts Repaired . | . . . . . Time . | . . . . . Parts Recycled . | . . . . . Recycled Matter . | . . . . . Retrieved Matter . | . . . . . Retrieved Components . | . . . . . Parts Scanalyzed 4 | . . 4 . . Part Schematics Acquired 4 | . . 4 . . Parts Damaged . | . . . . . Bothacking | -11 -10 -9 -9 -8 ------------ Run | Jun Mat Mat Min Mat Used RIF Installer . | . . . . . Robots Hacked 4 | . . . . 4 Non-combat 3 | . . . . 3 Combat 1 | . . . . 1 Robot Hacks Applied 5 | . . . . 5 parse_system 2 | . . . . 2 no_distress 1 | . . . . 1 find_recycling 1 | . . . . 1 check_alert 1 | . . . . 1 Relay Couplers Released . | . . . . . Fabnet Peak Effective % . | . . . . . Robots Rewired . | . . . . . Allies Hacked . | . . . . . Hacks Repelled . | . . . . . Allies | -11 -10 -9 -9 -8 -------- Run | Jun Mat Mat Min Mat Total Allies 3 | . . . 3 . Largest Group 3 | . . . 3 3 Highest-Rated Group 40 | . . . 40 40 Highest-Rated Ally 16 | . . . 16 16 Total Orders . | . . . . . Ally Attacks 40 | . . . . 40 Total Damage 418 | . . . . 418 Kills 4 | . . . . 4 Allies Corrupted . | . . . . . Allies Melted . | . . . . . Intel | -11 -10 -9 -9 -8 ------- Run | Jun Mat Mat Min Mat Robot Analysis Total . | . . . . . Derelict Logs Recovered . | . . . . . Drone Launches . | . . . . . Drone Recoveries . | . . . . . Exploration | -11 -10 -9 -9 -8 ------------- Run | Jun Mat Mat Min Mat Turns Passed 2188 | 97 552 705 70 764 Spaces Moved 817 | 61 197 359 27 173 Core 23 | 22 . 1 . . Treads 239 | 38 197 4 . . Legs 246 | 1 . 45 27 173 Wheels 309 | . . 309 . . Hover . | . . . . . Flight . | . . . . . Fastest Speed 50 | 50 160 105 260 260 Average Speed 195 | 133 228 124 260 317 Slowest Speed 950 | 160 240 950 260 540 Overloaded Moves . | . . . . . Propulsion Burnouts . | . . . . . Robots Hopped . | . . . . . Cave-ins Triggered . | . . . . . Exploration Rate (%) 24 | 4 35 45 12 26 Regions Visited 4 Branch Regions 1 Pre-discovered Areas . | . . . . . Known Exits Taken . | . . . . . Unknown Exits Taken 4 | 1 1 1 1 . Scrap Searched . | . . . . . Spaces Dug . | . . . . . Terrain Destroyed . | . . . . . Melee . | . . . . . Projectile . | . . . . . AOE . | . . . . . Terrain Rammed . | . . . . . Walls Destroyed . | . . . . . Machines Disabled . | . . . . . Actions | -11 -10 -9 -9 -8 --------- Run | Jun Mat Mat Min Mat Total 1193 | 75 258 523 28 309 Wait 114 | . 27 50 . 37 Move 813 | 60 196 358 26 173 Hop . | . . . . . Pick Up 44 | 7 11 14 . 12 Fast Attach 5 | 5 . . . . Attach 29 | 2 1 9 2 15 Detach 1 | 1 . . . . Swap 15 | . . 9 . 6 Drop 11 | . . 7 . 4 Fire 115 | . 23 46 . 46 Melee 46 | . . 30 . 16 Ram . | . . . . . Kick . | . . . . . Crush . | . . . . . Escape Stasis . | . . . . . Rewire . | . . . . . Trap . | . . . . . Miscellaneous . | . . . . . Route ------- -11/Junkyard -10/Materials -9/Materials (discovered 2 exits: [*Min x2]) -9/Mines -8/Materials History --------- Turn | Location | Event 10 | -11/Junkyard | Discovered new exit (range 16) 98 | -11/Junkyard | Entered Materials 317 | -10/Materials | Build established: Mutant 621 | -10/Materials | Discovered new exit (range 11) 650 | -10/Materials | Entered another Materials area 650 | -9/Materials | Evolved 2 slots: Power x1, Utility x1 955 | -9/Materials | Discovered new exit (range 7) 1274 | -9/Materials | Discovered new exit (range 16) 1337 | -9/Materials | Core integrity fell below 50% 1355 | -9/Materials | Entered Mines 1404 | -9/Mines | Discovered new exit (range 9) 1412 | -9/Mines | Assisted by bots powering up and referring to "LRC-V3" 1425 | -9/Mines | Entered Materials 1425 | -8/Materials | Accompanied by 3 allies 1425 | -8/Materials | Evolved 2 slots: Utility x2 1757 | -8/Materials | Lost 4 parts (2p1u1w) 1975 | -8/Materials | Lost 6 parts (1p2n2u1w) 2154 | -8/Materials | Core integrity fell below 50% 2171 | -8/Materials | Core integrity fell below 20% 2189 | -8/Materials | Destroyed by Y-45 Defender with Beam Rifle Last Messages --------------- 02137_ R-06 Scavenger inserts Lgt. Deuterium Engine into recycling unit. 02138_ Recycling unit begins recycling process. 02140_ R-06 Scavenger inserts Imp. Sensor Array into recycling unit. 02141_ K-01 Serf collects debris. 02144_ Aluminum Leg destroyed. 02144_ Critical hit (Burn: +37). 02146_ R-06 Scavenger collects Wheel. 02147_ Structural Scanner destroyed. 02147_ Critical hit (Burn: +37). 02148_ K-01 Serf collects debris. 02151_ R-06 Scavenger collects Sml. Matter Pod. 02151_ K-01 Serf collects debris. 02152_ Critical hit (Burn: +37). 02157_ K-01 Serf collects debris. 02165_ Acquired 20 matter. 02165_ Lgt. Nuclear Core destroyed. 02171_ Critical hit (Burn: +37). 02173_ Lgt. Assault Rifle destroyed. 02176_ Hpw. Tractor Beam destroyed. 02189_ Critical hit (Burn: +37). Map ----- +----------------------------------------------------+ | ???????????????????????????????????????#! | | ???????????????????????????????????????# | | ???????????????????????????????????????### | | ?????????????????????????????????????????? | | ?????????????????????????????????????????? | | ??????????????????? ######???????????????? | | ??????????????????? ######???????????????? | | ??????????????????? # ???????????????? | | ?????????????? # ????????????????? | | ?????????????####+### ???????????????? | | ?????????????## ^ ##???????????????? | | ?????????????## ^ # ???????????????? | | ?????????????## # ???????????????? | | ?????????????## ^ !# ???????????????? | | ??????????????? ^^ # ???????????????? | | ???????????????## """ # ##??? | | ???????????????##= """ ################## | | ???????????????## """ #### [ ] ##### | | ??????????????? # ""## """ ### | | ??????????????? #! T"## """ ### | | ??????????????? # """ ""##[ ! """ ### | | ??????????????? # ^""" #### ### | | ??????????????? # """ #### ### | | ??????????????? # + ### | | ??????????????? #[ #### ### | | ???????? #@ "" #######+####### % | | ????###?#####+###Y "Y ##### #####% | | ????## Y"" | | ????## | | ????## * ] % | | ????#### ############ ##### ##### | | ????"" # ############ ####### ####### | | ???????????????????## ##?#### ####?##### | | ???????????????????## ##???##+##???##### | | ???????????????????## ##??? #???????? | | ???????????????????## ##???? ????????? | | ???????????????????## ##??? ????????? | | ???????????????????# #???""" ????????? | | ???????????????????? ! ????""" ????????? | | ???????????????????? ???"""" ????????? | | ???????????????????? ???? ?? ????????? | | ???????????????????? # ????? ????????? | | ???????????????????? ## ????? ????????? | | ????????????????????? ## ??????????????? | | ?????????????????????????????????????????? | | ?????????????????????????????????????????? | | ?????????????????????????????????????????? | | ?????????????????????????????????????????? | | ?????????????????????????????????????????? | | ?????????????????????????????????????????? | +----------------------------------------------------+ Best States ------------- Heat Dissipation 41 Energy Generation 23 Energy Capacity 325 Matter Stores 300 Matter Capacity 300 Sight Range 20 Terrain Scan Density 10 Additional Mass Support 6 Armor Coverage 150 Resistance: KI 20 Resistance: TH 20 Resistance: EX 20 Resistance: EM 20 Resistance: I 20 Resistance: S 20 Resistance: P 20 Power Shielding 33 Evasion (%) 50 Recoil Reduction 2 Offensive Hacking 20 Item Schematics ----------------- Sml. Laser | -9/Materials | Scanalyzed Lgt. Ion Engine | -9/Materials | Scanalyzed Sml. Storage Unit | -9/Materials | Scanalyzed Sml. Matter Pod | -9/Materials | Scanalyzed Robot Schematics ------------------ None Fabricated ------------ Nothing Alien Tech Used ----------------- None Achievements -------------- None Challenges ------------ None Game ------ Seed FusionRestorationScanner Manual? 0 Play Time 00:54:17 Cumulative 10.4 hours Start 2023.03.07 @ 16:16:43 End 2023.03.07 @ 17:21:01 Sessions 1 Manual Loads 0 Difficulty Adventurer Special Mode None Game No. 7 Rogue 0 Adventurer 7 Explorer 0 Win Type - Total 0 Types 0/0/0/0/0/0/0/0/0 Lore% 12 Gallery% 18 Achievement% 12 Wizard Run 0 Options --------- ASCII 0 Keyboard 0 Movement Mouse Keybinds 0 Fullscreen 1 Font 18/X11Bold Map View 76x50 Tactical HUD 1 Map Filters NONE Filters NONE Steam 1 RUN: 75c65094-8c37-4fca-9282-04fda04e9fa1